fUST/lending_fUST_20250211
["ID","MTS","AMOUNT","RATE_DAILY","PERIOD"]
[352717197,1739271048999,-500.0,0.00011095,2]
[352717199,1739271049010,-500.0,0.00011095,2]
[352717201,1739271049020,-500.0,0.00011095,2]
[352717213,1739271049031,-500.0,0.00011095,2]
[352717216,1739271049154,-500.0,0.00011095,2]
[352717218,1739271049164,-500.0,0.00011095,2]
[352717220,1739271049175,-1026.39,0.00011095,2]
[352717222,1739271049186,-1889.25,0.00011095,2]
[352717224,1739271049196,-500.0,0.00011095,2]
[352717226,1739271049206,-500.0,0.00011095,2]
[352717228,1739271049216,-1918.89,0.00011095,2]
[352717230,1739271049226,-500.0,0.00011095,2]
[352717232,1739271049237,-500.0,0.00011095,2]
[352717234,1739271049247,-500.0,0.00011095,2]
[352717236,1739271049256,-502.58862675,0.00011095,2]
[352717238,1739271049267,-500.0,0.00011095,2]
[352717240,1739271049279,-500.0,0.00011095,2]
[352717242,1739271049289,-500.0,0.00011095,2]
[352717244,1739271049299,-500.0,0.00011095,2]
[352717246,1739271049310,-500.0,0.00011095,2]
[352717248,1739271049321,-500.0,0.00011095,2]
[352717250,1739271049331,-500.0,0.00011095,2]
[352717252,1739271049341,-500.0,0.00011095,2]
[352717254,1739271049351,-500.0,0.00011095,2]
[352717256,1739271049361,-632.41,0.00011095,2]
[352717258,1739271049371,-501.51805757,0.00011095,2]
[352717260,1739271049380,-524.7,0.00011095,2]
[352717262,1739271049390,-500.0,0.00011095,2]
[352717264,1739271049400,-500.0,0.00011095,2]
[352717266,1739271049409,-1527.94,0.00011095,2]
[352717268,1739271049419,-500.0,0.00011095,2]
[352717270,1739271049428,-600.52,0.00011095,2]
[352717272,1739271049439,-500.0,0.00011095,2]
[352717274,1739271049449,-500.0,0.00011095,2]
[352717277,1739271049459,-500.0,0.00011095,2]
[352717279,1739271049469,-500.0,0.00011095,2]
[352717280,1739271049479,-500.0,0.00011095,2]
[352717282,1739271049489,-500.0,0.00011095,2]
[352717284,1739271049498,-500.0,0.00011095,2]
[352717286,1739271049507,-500.0,0.00011095,2]
[352717288,1739271049517,-908.36,0.00011095,2]
[352717290,1739271049527,-1080.87,0.00011095,2]
[352717292,1739271049537,-1199.97,0.00011095,2]
[352717294,1739271049548,-500.0,0.00011095,2]
[352717296,1739271049559,-500.0,0.00011095,2]
[352717298,1739271049568,-500.0,0.00011095,2]
[352717300,1739271049577,-1673.93,0.00011095,2]
[352717302,1739271049587,-500.0,0.00011095,2]
[352717304,1739271049596,-500.0,0.00011095,2]
[352717306,1739271049608,-1883.13,0.00011095,2]
[352717308,1739271049617,-500.0,0.00011095,2]
[352717310,1739271049627,-500.0,0.00011095,2]
[352717312,1739271049636,-500.0,0.00011095,2]
[352717314,1739271049646,-500.0,0.00011095,2]
[352717316,1739271049655,-500.0,0.00011095,2]
[352717318,1739271049664,-1101.4,0.00011095,2]
[352717320,1739271049675,-2599.46,0.00011095,2]
[352717322,1739271049684,-862.33,0.00011095,2]
[352717324,1739271049695,-500.0,0.00011095,2]
[352717326,1739271049706,-500.0,0.00011095,2]
[352717328,1739271049715,-500.0,0.00011095,2]
[352717330,1739271049724,-500.0,0.00011095,2]
[352717332,1739271049734,-500.0,0.00011095,2]
[352717334,1739271049743,-904.1,0.00011095,2]
[352717336,1739271049752,-500.0,0.00011095,2]
[352717338,1739271049761,-500.0,0.00011095,2]
[352717340,1739271049771,-809.1,0.00011095,2]
[352717342,1739271049781,-500.0,0.00011095,2]
[352717344,1739271049790,-500.0,0.00011095,2]
[352717346,1739271049799,-500.0,0.00011095,2]
[352717347,1739271049809,-500.0,0.00011095,2]
[352717349,1739271049818,-500.0,0.00011095,2]
[352717351,1739271049827,-500.0,0.00011095,2]
[352717353,1739271049836,-2464.59,0.00011095,2]
[352717356,1739271049846,-500.0,0.00011095,2]
[352717357,1739271049856,-729.69,0.00011095,2]
[352717359,1739271049865,-500.0,0.00011095,2]
[352717360,1739271049874,-612.24,0.00011095,2]
[352717361,1739271049883,-500.0,0.00011095,2]
[352717362,1739271049892,-1132.32,0.00011095,2]
[352717363,1739271049901,-655.61,0.00011095,2]
[352717364,1739271049915,-552.97,0.00011095,2]
[352717365,1739271049935,-383.39412185,0.00011095,2]
[352717366,1739271049948,-500.0,0.00011095,2]
[352717367,1739271049957,-737.51,0.00011095,2]
[352717368,1739271049967,-3767.25,0.00011095,2]
[352717369,1739271049976,-500.0,0.00011095,2]
[352717370,1739271049985,-526.23169319,0.00011095,2]
[352717371,1739271049994,-500.0,0.00011095,2]
[352717372,1739271050004,-500.0,0.00011095,2]
[352717373,1739271050013,-500.0,0.00011095,2]
[352717374,1739271050023,-500.0,0.00011095,2]
[352717375,1739271050031,-545.01,0.00011095,2]
[352717376,1739271050041,-498.81242284,0.00011095,2]
[352717377,1739271050050,-3470.9,0.00011095,2]
[352717379,1739271050059,-500.0,0.00011095,2]
[352717381,1739271050070,-1061.59,0.00011095,2]
[352717384,1739271050079,-7193.18,0.00011095,2]
[352717386,1739271050089,-500.0,0.00011095,2]
[352717388,1739271050098,-500.0,0.00011095,2]
[352717390,1739271050107,-500.0,0.00011095,2]
[352717392,1739271050117,-500.0,0.00011095,2]
[352717394,1739271050126,-500.0,0.00011095,2]
[352717396,1739271050135,-500.0,0.00011095,2]
[352717398,1739271050144,-1169.2,0.00011095,2]
[352717400,1739271050154,-500.0,0.00011095,2]
[352717402,1739271050164,-500.0,0.00011095,2]
[352717404,1739271050173,-6929.21,0.00011095,2]
[352717406,1739271050183,-500.0,0.00011095,2]
[352717408,1739271050193,-589.89368677,0.00011095,2]
[352717410,1739271050203,-482.23374778,0.00011095,2]
[352717412,1739271050213,-500.0,0.00011095,2]
[352717414,1739271050223,-15739.03,0.00011095,2]
[352717416,1739271050233,-500.0,0.00011095,2]
[352717418,1739271050242,-683.86,0.00011095,2]
[352717419,1739271050252,-500.0,0.00011095,2]
[352717421,1739271050261,-500.0,0.00011095,2]
[352717423,1739271050270,-500.0,0.00011095,2]
[352717426,1739271050280,-505.07,0.00011095,2]
[352717427,1739271050289,-500.0,0.00011095,2]
[352717428,1739271050299,-500.0,0.00011095,2]
[352717430,1739271050308,-500.0,0.00011095,2]
[352717431,1739271050318,-500.0,0.00011095,2]
[352717433,1739271050327,-500.0,0.00011095,2]
[352717434,1739271050337,-500.0,0.00011095,2]
[352717436,1739271050347,-500.0,0.00011095,2]
[352717437,1739271050356,-608.77,0.00011095,2]
[352717438,1739271050365,-500.0,0.00011095,2]
[352717439,1739271050374,-1396.88,0.00011095,2]
[352717440,1739271050382,-1390.22,0.00011095,2]
[352717441,1739271050392,-542.86,0.00011095,2]
[352717442,1739271050401,-500.0,0.00011095,2]
[352717443,1739271050411,-500.0,0.00011095,2]
[352717444,1739271050421,-500.0,0.00011095,2]
[352717445,1739271050431,-3790.69,0.00011095,2]
[352717446,1739271050441,-500.0,0.00011095,2]
[352717448,1739271050451,-500.0,0.00011095,2]
[352717449,1739271050461,-500.0,0.00011095,2]
[352717451,1739271050470,-500.0,0.00011095,2]
[352717452,1739271050480,-500.0,0.00011095,2]
[352717454,1739271050490,-500.0,0.00011095,2]
[352717455,1739271050499,-1423.58,0.00011095,2]
[352717456,1739271050509,-500.0,0.00011095,2]
[352717457,1739271050519,-1333.5,0.00011095,2]
[352717458,1739271050529,-500.0,0.00011095,2]
[352717459,1739271050538,-4935.57,0.00011095,2]
[352717460,1739271050547,-500.0,0.00011095,2]
[352717461,1739271050557,-500.0,0.00011095,2]
[352717462,1739271050566,-503.49270951,0.00011095,2]
[352717463,1739271050575,-500.0,0.00011095,2]
[352717464,1739271050586,-500.0,0.00011095,2]
[352717465,1739271050595,-2542.83,0.00011095,2]
[352717466,1739271050608,-500.0,0.00011095,2]
[352717467,1739271050618,-901.18,0.00011095,2]
[352717468,1739271050627,-49962.25,0.00011095,2]
[352717469,1739271050637,-1198.72,0.00011095,2]
[352717470,1739271050647,-500.0,0.00011095,2]
[352717471,1739271050657,-500.4530456,0.00011095,2]
[352717472,1739271050666,-1818.92,0.00011095,2]
[352717473,1739271050676,-500.0,0.00011095,2]
[352717474,1739271050687,-500.0,0.00011095,2]
[352717475,1739271050698,-500.0,0.00011095,2]
[352717476,1739271050707,-500.0,0.00011095,2]
[352717477,1739271050717,-500.0,0.00011095,2]
[352717478,1739271050726,-500.0,0.00011095,2]
[352717479,1739271050735,-586.59,0.00011095,2]
[352717480,1739271050744,-500.0,0.00011095,2]
[352717481,1739271050753,-500.0,0.00011095,2]
[352717482,1739271050763,-500.0,0.00011095,2]
[352717483,1739271050772,-328.00557594,0.00011095,2]
[352717484,1739271050782,-500.0,0.00011095,2]
[352717485,1739271050792,-500.0,0.00011095,2]
[352717486,1739271050801,-500.0,0.00011095,2]
[352717487,1739271050813,-2556.24,0.00011095,2]
[352717488,1739271050823,-500.0,0.00011095,2]
[352717489,1739271050832,-924.14,0.00011095,2]
[352717490,1739271050842,-500.0,0.00011095,2]
[352717491,1739271050851,-500.0,0.00011095,2]
[352717492,1739271050861,-500.0,0.00011095,2]
[352717493,1739271050871,-500.0,0.00011095,2]
[352717494,1739271050881,-500.0,0.00011095,2]
[352717495,1739271050890,-500.0,0.00011095,2]
[352717496,1739271050899,-1567.27,0.00011095,2]
[352717497,1739271050909,-500.0,0.00011095,2]
[352717498,1739271050919,-421.38357896,0.00011095,2]
[352717499,1739271050928,-1738.02,0.00011095,2]
[352717500,1739271050938,-500.0,0.00011095,2]
[352717501,1739271050951,-4187.05,0.00011095,2]
[352717502,1739271050961,-954.02,0.00011095,2]
[352717503,1739271050971,-500.0,0.00011095,2]
[352717504,1739271050980,-21874.65,0.00011095,2]
[352717505,1739271050990,-500.0,0.00011095,2]
[352717506,1739271050999,-500.0,0.00011095,2]
[352717507,1739271051009,-1162.92,0.00011095,2]
[352717508,1739271051019,-3089.15,0.00011095,2]
[352717509,1739271051029,-2342.54,0.00011095,2]
[352717510,1739271051039,-946.04,0.00011095,2]
[352717511,1739271051048,-500.0,0.00011095,2]
[352717512,1739271051058,-500.0,0.00011095,2]
[352717513,1739271051067,-501.57565455,0.00011095,2]
[352717514,1739271051077,-733.18,0.00011095,2]
[352717515,1739271051086,-954.7,0.00011095,2]
[352717516,1739271051096,-7338.77,0.00011095,2]
[352717517,1739271051105,-2070.97,0.00011095,2]
[352717518,1739271051115,-500.0,0.00011095,2]
[352717519,1739271051124,-1761.27,0.00011095,2]
[352717520,1739271051134,-500.0,0.00011095,2]
[352717521,1739271051143,-500.0,0.00011095,2]
[352717522,1739271051153,-500.0,0.00011095,2]
[352717523,1739271051163,-500.0,0.00011095,2]
[352717524,1739271051174,-500.0,0.00011095,2]
[352717525,1739271051183,-500.0,0.00011095,2]
[352717526,1739271051193,-594.95,0.00011095,2]
[352717527,1739271051203,-500.0,0.00011095,2]
[352717528,1739271051316,-1110.33,0.00011095,2]
[352717529,1739271051325,-500.0,0.00011095,2]
[352717530,1739271051335,-500.0,0.00011095,2]
[352717531,1739271051344,-1936.04,0.00011095,2]
[352717532,1739271051353,-820.02,0.00011095,2]
[352717533,1739271051362,-671.12,0.00011095,2]
[352717534,1739271051370,-500.0,0.00011095,2]
[352717535,1739271051379,-500.0,0.00011095,2]
[352717536,1739271051389,-500.0,0.00011095,2]
[352717537,1739271051398,-500.0,0.00011095,2]
[352717538,1739271051407,-500.0,0.00011095,2]
[352717539,1739271051416,-500.0,0.00011095,2]
[352717540,1739271051425,-500.0,0.00011095,2]
[352717541,1739271051434,-500.0,0.00011095,2]
[352717542,1739271051444,-500.0,0.00011095,2]
[352717543,1739271051453,-500.0,0.00011095,2]
[352717544,1739271051463,-500.0,0.00011095,2]
[352717545,1739271051472,-501.29573222,0.00011095,2]
[352717546,1739271051481,-1144.74,0.00011095,2]
[352717547,1739271051490,-500.0,0.00011095,2]
[352717548,1739271051499,-153.0,0.00011096,2]
[352717549,1739271051508,-173.6056106,0.00011096,2]
[352717550,1739271051517,-153.0,0.000111,2]
[352717551,1739271051527,-153.0,0.000111,2]
[352717552,1739271051535,-153.0,0.000111,2]
[352717553,1739271051545,-151.0,0.000111,2]
[352717554,1739271051554,-151.0,0.000111,2]
[352717555,1739271051563,-151.0,0.000111,2]
[352717556,1739271051573,-151.0,0.000111,2]
[352717557,1739271051582,-151.0,0.000111,2]
[352717558,1739271051591,-151.0,0.000111,2]
[352717559,1739271051603,-151.0,0.000111,2]
[352717560,1739271051614,-151.0,0.000111,2]
[352717561,1739271051623,-465.04800739,0.00011135,2]
[352717562,1739271051632,-552.00678785,0.00011232,2]
[352717563,1739271051641,-500.0,0.00011232,2]
[352717564,1739271051652,-150.18,0.00011232,2]
[352717565,1739271051660,-175.04804546,0.00011232,2]
[352717566,1739271051670,-500.0,0.00011232,2]
[352717567,1739271051681,-500.0,0.00011232,2]
[352717568,1739271051691,-697.31189464,0.00011232,2]
[352717569,1739271051701,-150.18,0.00011232,2]
[352717570,1739271051710,-150.18,0.00011232,2]
[352717571,1739271051720,-500.0,0.00011232,2]
[352717572,1739271051730,-500.0,0.00011232,2]
[352717573,1739271051739,-150.18,0.00011232,2]
[352717574,1739271051749,-821.36,0.00011232,2]
[352717575,1739271051759,-500.0,0.00011232,2]
[352717576,1739271051768,-500.0,0.00011232,2]
[352717577,1739271051778,-530.18,0.00011232,2]
[352717578,1739271051787,-500.0,0.00011232,2]
[352717579,1739271051796,-500.0,0.00011232,2]
[352717580,1739271051805,-500.0,0.00011232,2]
[352717581,1739271051814,-500.0,0.00011232,2]
[352717582,1739271051823,-500.0,0.00011232,2]
[352717583,1739271051833,-500.0,0.00011232,2]
[352717584,1739271051843,-500.0,0.00011232,2]
[352717585,1739271051853,-500.0,0.00011232,2]
[352717586,1739271051868,-500.0,0.00011232,2]
[352717587,1739271051878,-500.0,0.00011232,2]
[352717588,1739271051887,-500.0,0.00011232,2]
[352717589,1739271051897,-500.0,0.00011232,2]
[352717590,1739271051907,-500.0,0.00011232,2]
[352717591,1739271051916,-500.0,0.00011232,2]
[352717592,1739271051926,-500.0,0.00011232,2]
[352717593,1739271051936,-405.85209077,0.00011232,2]
[352717594,1739271051946,-500.0,0.00011232,2]
[352717595,1739271051956,-500.0,0.00011232,2]
[352717596,1739271051966,-500.0,0.00011232,2]
[352717597,1739271051975,-502.45,0.00011232,2]
[352717598,1739271051985,-500.0,0.00011232,2]
[352717599,1739271051994,-500.0,0.00011232,2]
[352717600,1739271052004,-500.0,0.00011232,2]
[352717601,1739271052013,-500.0,0.00011232,2]
[352717602,1739271052023,-500.0,0.00011232,2]
[352717603,1739271052032,-500.0,0.00011232,2]
[352717604,1739271052042,-558.49584911,0.00011232,2]
[352717605,1739271052051,-500.0,0.00011232,2]
[352717606,1739271052061,-503.85068752,0.00011232,2]
[352717607,1739271052070,-507.56521614,0.00011232,2]
[352717608,1739271052079,-500.0,0.00011232,2]
[352717609,1739271052089,-500.0,0.00011232,2]
[352717610,1739271052098,-500.0,0.00011232,2]
[352717611,1739271052107,-500.0,0.00011232,2]
[352717612,1739271052117,-619.81586012,0.00011232,2]
[352717613,1739271052126,-500.0,0.00011232,2]
[352717614,1739271052136,-277.9612078,0.00011232,2]
[352717615,1739271052145,-500.0,0.00011232,2]
[352717616,1739271052154,-514.15533111,0.00011232,2]
[352717617,1739271052164,-500.0,0.00011232,2]
[352717618,1739271052173,-500.0,0.00011232,2]
[352717619,1739271052183,-500.0,0.00011232,2]
[352717620,1739271052193,-500.0,0.00011232,2]
[352717621,1739271052202,-500.0,0.00011232,2]
[352717622,1739271052212,-500.0,0.00011232,2]
[352717623,1739271052222,-500.0,0.00011232,2]
[352717624,1739271052231,-500.0,0.00011232,2]
[352717625,1739271052240,-500.0,0.00011232,2]
[352717626,1739271052249,-500.0,0.00011232,2]
[352717627,1739271052259,-500.0,0.00011232,2]
[352717628,1739271052268,-1176.85,0.00011232,2]
[352717629,1739271052277,-315.23926234,0.00011232,2]
[352717630,1739271052287,-500.0,0.00011232,2]
[352717631,1739271052297,-500.0,0.00011232,2]
[352717632,1739271052306,-500.0,0.00011232,2]
[352717633,1739271052316,-522.39727527,0.00011232,2]
[352717634,1739271052325,-504.57949021,0.00011232,2]
[352717635,1739271052334,-500.0,0.00011232,2]
[352717636,1739271052343,-500.0,0.00011232,2]
[352717637,1739271052352,-644.79,0.00011232,2]
[352717638,1739271052361,-500.0,0.00011232,2]
[352717639,1739271052371,-500.0,0.00011232,2]
[352717640,1739271052380,-500.0,0.00011232,2]
[352717641,1739271052390,-500.0,0.00011232,2]
[352717642,1739271052399,-500.0,0.00011232,2]
[352717643,1739271052408,-500.0,0.00011232,2]
[352717644,1739271052418,-527.51408957,0.00011232,2]
[352717645,1739271052428,-500.0,0.00011232,2]
[352717646,1739271052437,-587.05,0.00011232,2]
[352717647,1739271052450,-500.0,0.00011232,2]
[352717648,1739271052460,-500.0,0.00011232,2]
[352717649,1739271052469,-500.0,0.00011232,2]
[352717650,1739271052479,-500.0,0.00011232,2]
[352717651,1739271052489,-500.0,0.00011232,2]
[352717652,1739271052498,-519.22,0.00011232,2]
[352717653,1739271052508,-500.0,0.00011232,2]
[352717654,1739271052517,-500.0,0.00011232,2]
[352717655,1739271052528,-500.0,0.00011232,2]
[352717656,1739271052537,-500.0,0.00011232,2]
[352717657,1739271052547,-500.0,0.00011232,2]
[352717658,1739271052557,-500.0,0.00011232,2]
[352717659,1739271052566,-500.0,0.00011232,2]
[352717660,1739271052576,-500.0,0.00011232,2]
[352717661,1739271052586,-500.0,0.00011232,2]
[352717662,1739271052596,-500.0,0.00011232,2]
[352717663,1739271052608,-276.17563363,0.00011232,2]
[352717664,1739271052618,-500.0,0.00011232,2]
[352717665,1739271052627,-500.0,0.00011232,2]
[352717666,1739271052636,-500.0,0.00011232,2]
[352717667,1739271052646,-880.23,0.00011232,2]
[352717668,1739271052655,-500.0,0.00011232,2]
[352717669,1739271052665,-884.03,0.00011232,2]
[352717670,1739271052674,-500.0,0.00011232,2]
[352717671,1739271052684,-500.0,0.00011232,2]
[352717672,1739271052695,-500.0,0.00011232,2]
[352717673,1739271052704,-840.65,0.00011232,2]
[352717674,1739271052714,-500.0,0.00011232,2]
[352717675,1739271052724,-648.56955626,0.00011232,2]
[352717676,1739271052733,-836.03,0.00011232,2]
[352717677,1739271052742,-500.0,0.00011232,2]
[352717678,1739271052752,-500.0,0.00011232,2]
[352717679,1739271052762,-500.0,0.00011232,2]
[352717680,1739271052771,-500.0,0.00011232,2]
[352717681,1739271052781,-500.0,0.00011232,2]
[352717682,1739271052790,-937.63,0.00011232,2]
[352717683,1739271052799,-500.0,0.00011232,2]
[352717684,1739271052809,-500.0,0.00011232,2]
[352717685,1739271052818,-500.0,0.00011232,2]
[352717686,1739271052828,-521.34,0.00011232,2]
[352717687,1739271052837,-500.0,0.00011232,2]
[352717688,1739271052846,-511.72,0.00011232,2]
[352717689,1739271052855,-500.0,0.00011232,2]
[352717690,1739271052865,-500.0,0.00011232,2]
[352717691,1739271052874,-669.15,0.00011232,2]
[352717692,1739271052884,-500.0,0.00011232,2]
[352717693,1739271052893,-777.03,0.00011232,2]
[352717694,1739271052902,-500.0,0.00011232,2]
[352717695,1739271052912,-1164.87,0.00011232,2]
[352717696,1739271052922,-500.0,0.00011232,2]
[352717697,1739271052931,-500.0,0.00011232,2]
[352717698,1739271052940,-500.0,0.00011232,2]
[352717699,1739271052950,-500.0,0.00011232,2]
[352717700,1739271052959,-500.0,0.00011232,2]
[352717701,1739271052969,-500.0,0.00011232,2]
[352717702,1739271052978,-500.0,0.00011232,2]
[352717703,1739271052988,-780.9,0.00011232,2]
[352717704,1739271052997,-1549.36,0.00011232,2]
[352717705,1739271053008,-500.0,0.00011232,2]
[352717706,1739271053018,-1162.4,0.00011232,2]
[352717707,1739271053028,-355.05829244,0.00011232,2]
[352717708,1739271053038,-500.0,0.00011232,2]
[352717709,1739271053047,-500.0,0.00011232,2]
[352717710,1739271053057,-500.0,0.00011232,2]
[352717711,1739271053066,-500.0,0.00011232,2]
[352717712,1739271053076,-500.0,0.00011232,2]
[352717713,1739271053086,-500.0,0.00011232,2]
[352717714,1739271053095,-500.0,0.00011232,2]
[352717715,1739271053104,-500.0,0.00011232,2]
[352717716,1739271053114,-500.0,0.00011232,2]
[352717717,1739271053123,-500.0,0.00011232,2]
[352717718,1739271053133,-500.0,0.00011232,2]
[352717719,1739271053143,-573.64,0.00011232,2]
[352717720,1739271053153,-500.0,0.00011232,2]
[352717721,1739271053258,-500.0,0.00011232,2]
[352717722,1739271053268,-577.23,0.00011232,2]
[352717723,1739271053278,-500.0,0.00011232,2]
[352717724,1739271053287,-506.10316296,0.00011232,2]
[352717725,1739271053296,-505.88620862,0.00011232,2]
[352717726,1739271053306,-832.66,0.00011232,2]
[352717727,1739271053315,-500.0,0.00011232,2]
[352717728,1739271053324,-502.66869002,0.00011232,2]
[352717729,1739271053334,-500.0,0.00011232,2]
[352717730,1739271053344,-500.0,0.00011232,2]
[352717731,1739271053353,-500.0,0.00011232,2]
[352717732,1739271053362,-500.0,0.00011232,2]
[352717733,1739271053371,-500.0,0.00011232,2]
[352717734,1739271053382,-1026.39,0.00011232,2]
[352717735,1739271053392,-1889.25,0.00011232,2]
[352717736,1739271053401,-500.0,0.00011232,2]
[352717737,1739271053411,-500.0,0.00011232,2]
[352717738,1739271053420,-1918.89,0.00011232,2]
[352717739,1739271053429,-500.0,0.00011232,2]
[352717740,1739271053439,-7412.45370396,0.00011232,4]
[352717741,1739271053449,-296.53694146,0.00011232,2]
[352717742,1739271053459,-500.0,0.00011232,2]
[352717743,1739271053468,-514.45843896,0.00011232,2]
[352717744,1739271053478,-500.0,0.00011232,2]
[352717745,1739271053487,-500.0,0.00011232,2]
[352717746,1739271053497,-500.0,0.00011232,2]
[352717747,1739271053506,-500.0,0.00011232,2]
[352717748,1739271053515,-465.00044994,0.00011232,2]
[352717749,1739271053524,-500.0,0.00011232,2]
[352717750,1739271053534,-500.0,0.00011232,2]
[352717751,1739271053543,-500.0,0.00011232,2]
[352717752,1739271053552,-632.41,0.00011232,2]
[352717753,1739271053561,-524.7,0.00011232,2]
[352717754,1739271053571,-500.0,0.00011232,2]
[352717755,1739271053580,-500.0,0.00011232,2]
[352717756,1739271053590,-1527.94,0.00011232,2]
[352717757,1739271053601,-500.0,0.00011232,2]
[352717758,1739271053616,-600.52,0.00011232,2]
[352717759,1739271053625,-500.0,0.00011232,2]
[352717760,1739271053634,-500.0,0.00011232,2]
[352717761,1739271053644,-500.0,0.00011232,2]
[352717762,1739271053653,-500.0,0.00011232,2]
[352717763,1739271053662,-500.0,0.00011232,2]
[352717764,1739271053671,-500.0,0.00011232,2]
[352717765,1739271053682,-465.29464802,0.00011232,2]
[352717766,1739271053691,-502.25190548,0.00011232,2]
[352717767,1739271053702,-908.36,0.00011232,2]
[352717768,1739271053711,-1080.87,0.00011232,2]
[352717769,1739271053720,-1199.97,0.00011232,2]
[352717770,1739271053729,-509.67388381,0.00011232,2]
[352717771,1739271053738,-438.84086868,0.00011232,2]
[352717772,1739271053975,-61.15913132,0.00011232,2]
[352717773,1739271053984,-500.0,0.00011232,2]
[352717774,1739271053994,-865.35391154,0.00011232,2]
[352717775,1739271054006,-808.57608846,0.00011232,2]
[352717776,1739271054016,-500.0,0.00011232,2]
[352717777,1739271054026,-500.0,0.00011232,2]
[352717778,1739271054035,-1883.13,0.00011232,2]
[352717779,1739271054044,-500.0,0.00011232,2]
[352717780,1739271054054,-104.76599574,0.00011232,2]
[352717781,1739271054065,-395.23400426,0.00011232,2]
[352717782,1739271054075,-500.0,0.00011232,2]
[352717783,1739271054085,-500.0,0.00011232,2]
[352717784,1739271054095,-500.0,0.00011232,2]
[352717785,1739271054104,-1101.4,0.00011232,2]
[352717786,1739271054114,-219.88741222,0.00011232,2]
[352717787,1739271054169,-500.0,0.00010955,2]
[352717788,1739271054178,-500.0,0.00010955,2]
[352717789,1739271054187,-500.0,0.00010955,2]
[352717790,1739271054198,-500.0,0.00010955,2]
[352717791,1739271054207,-2379.57258778,0.00011232,2]
[352717792,1739271054217,-862.33,0.00011232,2]
[352717793,1739271054226,-500.0,0.00011232,2]
[352717794,1739271054236,-500.0,0.00011232,2]
[352717795,1739271054245,-500.0,0.00011232,2]
[352717796,1739271054255,-500.0,0.00011232,2]
[352717797,1739271054264,-500.0,0.00011232,2]
[352717798,1739271054273,-904.1,0.00011232,2]
[352717799,1739271054283,-509.95475104,0.00011232,2]
[352717800,1739271054293,-500.0,0.00011232,2]
[352717801,1739271054302,-809.1,0.00011232,2]
[352717802,1739271054312,-500.0,0.00011232,2]
[352717803,1739271054322,-500.0,0.00011232,2]
[352717804,1739271054331,-500.0,0.00011232,2]
[352717805,1739271054340,-500.0,0.00011232,2]
[352717806,1739271054350,-500.0,0.00011232,2]
[352717807,1739271054359,-500.0,0.00011232,2]
[352717808,1739271054368,-500.0,0.00011232,2]
[352717809,1739271054379,-2464.59,0.00011232,2]
[352717810,1739271054389,-729.69,0.00011232,2]
[352717811,1739271054398,-500.0,0.00011232,2]
[352717812,1739271054408,-612.24,0.00011232,2]
[352717813,1739271054418,-500.0,0.00011232,2]